fUSD/lending_fUSD_20250211
["ID","MTS","AMOUNT","RATE_DAILY","PERIOD"]
[352783190,1739310645286,-500.0,0.00016575,2]
[352783192,1739310645295,-500.0,0.00016575,2]
[352783194,1739310645304,-500.0,0.00016575,2]
[352783196,1739310645313,-500.0,0.00016575,2]
[352783198,1739310645323,-500.0,0.00016575,2]
[352783200,1739310645332,-500.0,0.00016575,2]
[352783202,1739310645341,-500.0,0.00016575,2]
[352783204,1739310645350,-500.0,0.00016575,2]
[352783206,1739310645359,-500.0,0.00016575,2]
[352783208,1739310645368,-500.0,0.00016575,2]
[352783210,1739310645377,-500.0,0.00016575,2]
[352783211,1739310645386,-500.0,0.00016575,2]
[352783213,1739310645397,-500.0,0.00016575,2]
[352783215,1739310645407,-500.0,0.00016575,2]
[352783217,1739310645416,-500.0,0.00016575,2]
[352783219,1739310645425,-500.0,0.00016575,2]
[352783221,1739310645435,-500.0,0.00016575,2]
[352783223,1739310645445,-500.0,0.00016575,2]
[352783225,1739310645454,-500.0,0.00016575,2]
[352783227,1739310645464,-500.0,0.00016575,2]
[352783229,1739310645473,-500.0,0.00016575,2]
[352783231,1739310645482,-500.0,0.00016575,2]
[352783233,1739310645491,-500.0,0.00016575,2]
[352783235,1739310645501,-500.0,0.00016575,2]
[352783237,1739310645510,-500.0,0.00016575,2]
[352783239,1739310645519,-500.0,0.00016575,2]
[352783241,1739310645528,-500.0,0.00016575,2]
[352783243,1739310645537,-500.0,0.00016575,2]
[352783245,1739310645547,-500.0,0.00016575,2]
[352783247,1739310645556,-500.0,0.00016575,2]
[352783249,1739310645565,-590.60470793,0.00016575,2]
[352783251,1739310645574,-500.0,0.00016575,2]
[352783253,1739310645583,-500.0,0.00016575,2]
[352783254,1739310645592,-500.0,0.00016575,2]
[352783256,1739310645601,-500.0,0.00016575,2]
[352783258,1739310645610,-500.0,0.00016575,2]
[352783260,1739310645619,-638.93919831,0.00016575,2]
[352783262,1739310645629,-500.0,0.00016575,2]
[352783264,1739310645638,-500.0,0.00016575,2]
[352783266,1739310645648,-500.0,0.00016575,2]
[352783268,1739310645657,-500.0,0.00016575,2]
[352783270,1739310645667,-397.23918745,0.00016575,2]
[352783272,1739310645676,-500.0,0.00016575,2]
[352783274,1739310645686,-500.0,0.00016575,2]
[352783276,1739310645696,-500.0,0.00016575,2]
[352783278,1739310645707,-630.48,0.00016575,2]
[352783280,1739310645717,-500.0,0.00016575,2]
[352783282,1739310645727,-500.0,0.00016575,2]
[352783284,1739310645736,-500.0,0.00016575,2]
[352783286,1739310645746,-500.0,0.00016575,2]
[352783288,1739310645755,-500.0,0.00016575,2]
[352783290,1739310645765,-500.0,0.00016575,2]
[352783291,1739310645774,-500.0,0.00016575,2]
[352783292,1739310645783,-500.0,0.00016575,2]
[352783293,1739310645792,-500.0,0.00016575,2]
[352783294,1739310645804,-388.19453821,0.00016575,2]
[352783295,1739310645813,-500.0,0.00016575,2]
[352783296,1739310645822,-544.76,0.00016575,2]
[352783297,1739310645832,-385.09852718,0.00016575,2]
[352783298,1739310645842,-500.0,0.00016575,2]
[352783299,1739310645851,-505.34133435,0.00016575,2]
[352783300,1739310645860,-500.0,0.00016575,2]
[352783301,1739310645870,-500.0,0.00016575,2]
[352783302,1739310645879,-416.6673528,0.00016575,2]
[352783303,1739310645889,-501.29654235,0.00016575,2]
[352783304,1739310645898,-500.0,0.00016575,2]
[352783305,1739310645907,-500.0,0.00016575,2]
[352783306,1739310645916,-500.0,0.00016575,2]
[352783307,1739310645926,-500.0,0.00016575,2]
[352783308,1739310645935,-500.0,0.00016575,2]
[352783310,1739310645944,-500.0,0.00016575,2]
[352783312,1739310645954,-500.0,0.00016575,2]
[352783314,1739310645964,-500.0,0.00016575,2]
[352783316,1739310645973,-500.0,0.00016575,2]
[352783318,1739310645983,-500.0,0.00016575,2]
[352783320,1739310645992,-500.0,0.00016575,2]
[352783321,1739310646002,-500.0,0.00016575,2]
[352783323,1739310646012,-500.0,0.00016575,2]
[352783325,1739310646021,-508.80968716,0.00016575,2]
[352783327,1739310646030,-500.0,0.00016575,2]
[352783329,1739310646042,-500.0,0.00016575,2]
[352783331,1739310646051,-500.0,0.00016575,2]
[352783333,1739310646061,-500.0,0.00016575,2]
[352783335,1739310646071,-500.0,0.00016575,2]
[352783337,1739310646080,-264.24895656,0.00016575,2]
[352783339,1739310646090,-392.4347923,0.00016575,2]
[352783341,1739310646100,-500.0,0.00016575,2]
[352783343,1739310646109,-332.86,0.00016575,2]
[352783345,1739310646119,-499.7984,0.00016575,2]
[352783347,1739310646128,-635.69,0.00016575,2]
[352783349,1739310646137,-500.0,0.00016575,2]
[352783351,1739310646146,-500.0,0.00016575,2]
[352783353,1739310646156,-500.0,0.00016575,2]
[352783355,1739310646165,-604.92,0.00016575,2]
[352783357,1739310646175,-500.0,0.00016575,2]
[352783359,1739310646184,-500.0,0.00016575,2]
[352783361,1739310646193,-500.0,0.00016575,2]
[352783363,1739310646204,-633.06,0.00016575,2]
[352783365,1739310646213,-500.0,0.00016575,2]
[352783367,1739310646223,-500.0,0.00016575,2]
[352783369,1739310646232,-500.0,0.00016575,2]
[352783371,1739310646241,-500.0,0.00016575,2]
[352783373,1739310646251,-500.0,0.00016575,2]
[352783375,1739310646260,-376.53,0.00016575,2]
[352783377,1739310646270,-500.0,0.00016575,2]
[352783379,1739310646280,-500.0,0.00016575,2]
[352783380,1739310646290,-500.0,0.00016575,2]
[352783382,1739310646299,-153.29444551,0.00016575,2]
[352783384,1739310646309,-500.0,0.00016575,2]
[352783386,1739310646318,-500.0,0.00016575,2]
[352783388,1739310646328,-500.0,0.00016575,2]
[352783390,1739310646337,-392.24789593,0.00016575,2]
[352783392,1739310646346,-500.0,0.00016575,2]
[352783394,1739310646356,-500.0,0.00016575,2]
[352783396,1739310646365,-260.38,0.00016575,2]
[352783398,1739310646374,-500.0,0.00016575,2]
[352783400,1739310646384,-500.0,0.00016575,2]
[352783402,1739310646394,-193.56414132,0.00016575,2]
[352783404,1739310646404,-500.0,0.00016575,2]
[352783407,1739310646414,-500.0,0.00016575,2]
[352783410,1739310646423,-500.0,0.00016575,2]
[352783413,1739310646433,-503.34674859,0.00016575,2]
[352783416,1739310646443,-560.04,0.00016575,2]
[352783419,1739310646453,-500.0,0.00016575,2]
[352783422,1739310646462,-500.0,0.00016575,2]
[352783425,1739310646471,-500.0,0.00016575,2]
[352783428,1739310646481,-500.0,0.00016575,2]
[352783431,1739310646490,-500.0,0.00016575,2]
[352783434,1739310646500,-500.0,0.00016575,2]
[352783437,1739310646511,-500.0,0.00016575,2]
[352783440,1739310646520,-500.0,0.00016575,2]
[352783443,1739310646530,-500.0,0.00016575,2]
[352783446,1739310646539,-500.0,0.00016575,2]
[352783448,1739310646548,-500.0,0.00016575,2]
[352783450,1739310646557,-500.0,0.00016575,2]
[352783452,1739310646567,-500.0,0.00016575,2]
[352783454,1739310646576,-500.0,0.00016575,2]
[352783456,1739310646586,-500.0,0.00016575,2]
[352783458,1739310646595,-500.0,0.00016575,2]
[352783460,1739310646604,-158.61,0.00016575,2]
[352783462,1739310646613,-500.0,0.00016575,2]
[352783464,1739310646623,-500.0,0.00016575,2]
[352783466,1739310646632,-500.0,0.00016575,2]
[352783468,1739310646641,-500.0,0.00016575,2]
[352783469,1739310646651,-500.0,0.00016575,2]
[352783472,1739310646660,-500.0,0.00016575,2]
[352783473,1739310646670,-500.0,0.00016575,2]
[352783476,1739310646680,-500.0,0.00016575,2]
[352783477,1739310646689,-500.0,0.00016575,2]
[352783480,1739310646700,-197.83684603,0.00016575,2]
[352783481,1739310646725,-500.0,0.00016575,2]
[352783484,1739310646802,-500.0,0.00016575,2]
[352783485,1739310646937,-500.0,0.00016575,2]
[352783487,1739310647000,-500.0,0.00016575,2]
[352783489,1739310647129,-500.0,0.00016575,2]
[352783491,1739310647244,-500.0,0.00016575,2]
[352783493,1739310647354,-500.59425366,0.00016575,2]
[352783495,1739310647436,-500.0,0.00016575,2]
[352783497,1739310647537,-500.0,0.00016575,2]
[352783499,1739310647635,-500.0,0.00016575,2]
[352783501,1739310647746,-500.0,0.00016575,2]
[352783503,1739310647830,-500.0,0.00016575,2]
[352783505,1739310647892,-500.0,0.00016575,2]
[352783507,1739310647903,-500.0,0.00016575,2]
[352783509,1739310647912,-501.80698467,0.00016575,2]
[352783511,1739310647922,-452.63,0.00016575,2]
[352783513,1739310647933,-500.0,0.00016575,2]
[352783515,1739310647943,-500.0,0.00016575,2]
[352783517,1739310647954,-500.0,0.00016575,2]
[352783519,1739310647964,-500.0,0.00016575,2]
[352783521,1739310647974,-500.0,0.00016575,2]
[352783523,1739310647984,-500.0,0.00016575,2]
[352783525,1739310647994,-180.76721137,0.00016575,2]
[352783527,1739310648003,-500.0,0.00016575,2]
[352783529,1739310648013,-500.0,0.00016575,2]
[352783531,1739310648023,-500.0,0.00016575,2]
[352783533,1739310648033,-500.0,0.00016575,2]
[352783535,1739310648043,-500.0,0.00016575,2]
[352783537,1739310648053,-500.0,0.00016575,2]
[352783539,1739310648062,-500.78644959,0.00016575,2]
[352783541,1739310648072,-500.0,0.00016575,2]
[352783543,1739310648082,-500.0,0.00016575,2]
[352783545,1739310648092,-500.0,0.00016575,2]
[352783547,1739310648101,-500.0,0.00016575,2]
[352783549,1739310648111,-500.0,0.00016575,2]
[352783551,1739310648121,-500.0,0.00016575,2]
[352783567,1739310648267,-500.0,0.00016575,2]
[352783569,1739310648277,-500.0,0.00016575,2]
[352783571,1739310648287,-500.0,0.00016575,2]
[352783573,1739310648296,-500.0,0.00016575,2]
[352783575,1739310648306,-513.64947893,0.00016575,2]
[352783577,1739310648316,-383.7,0.00016575,2]
[352783579,1739310648326,-500.0,0.00016575,2]
[352783581,1739310648337,-500.0,0.00016575,2]
[352783583,1739310648347,-500.0,0.00016575,2]
[352783585,1739310648357,-500.0,0.00016575,2]
[352783587,1739310648370,-500.0,0.00016575,2]
[352783589,1739310648381,-500.0,0.00016575,2]
[352783591,1739310648391,-500.0,0.00016575,2]
[352783593,1739310648400,-500.0,0.00016575,2]
[352783595,1739310648411,-500.0,0.00016575,2]
[352783597,1739310648422,-500.0,0.00016575,2]
[352783599,1739310648431,-500.0,0.00016575,2]
[352783601,1739310648441,-500.0,0.00016575,2]
[352783603,1739310648452,-500.0,0.00016575,2]
[352783605,1739310648462,-500.0,0.00016575,2]
[352783607,1739310648472,-500.0,0.00016575,2]
[352783609,1739310648482,-500.0,0.00016575,2]
[352783611,1739310648491,-500.0,0.00016575,2]
[352783613,1739310648501,-500.0,0.00016575,2]
[352783615,1739310648511,-500.0,0.00016575,2]
[352783617,1739310648523,-500.0,0.00016575,2]
[352783618,1739310648533,-500.0,0.00016575,2]
[352783620,1739310648543,-500.0,0.00016575,2]
[352783622,1739310648554,-325.85572489,0.00016575,2]
[352783624,1739310648565,-500.0,0.00016575,2]
[352783626,1739310648577,-530.44,0.00016575,2]
[352783628,1739310648587,-500.0,0.00016575,2]
[352783630,1739310648597,-500.0,0.00016575,2]
[352783632,1739310648607,-500.0,0.00016575,2]
[352783634,1739310648618,-500.0,0.00016575,2]
[352783636,1739310648629,-500.0,0.00016575,2]
[352783638,1739310648639,-500.0,0.00016575,2]
[352783640,1739310648649,-500.0,0.00016575,2]
[352783642,1739310648659,-500.0,0.00016575,2]
[352783644,1739310648668,-500.0,0.00016575,2]
[352783646,1739310648678,-524.12444529,0.00016575,2]
[352783648,1739310648687,-500.0,0.00016575,2]
[352783650,1739310648697,-500.0,0.00016575,2]
[352783651,1739310648707,-297.37995626,0.00016575,2]
[352783653,1739310648716,-500.0,0.00016575,2]
[352783655,1739310648726,-500.0,0.00016575,2]
[352783657,1739310648736,-500.0,0.00016575,2]
[352783660,1739310648747,-500.0,0.00016575,2]
[352783661,1739310648756,-500.0,0.00016575,2]
[352783663,1739310648766,-500.0,0.00016575,2]
[352783665,1739310648776,-500.0,0.00016575,2]
[352783667,1739310648786,-509.618481,0.00016575,2]
[352783669,1739310648797,-500.0,0.00016575,2]
[352783671,1739310648810,-500.0,0.00016575,2]
[352783673,1739310648821,-500.0,0.00016575,2]
[352783675,1739310648831,-500.0,0.00016575,2]
[352783677,1739310648843,-500.0,0.00016575,2]
[352783680,1739310648854,-500.0,0.00016575,2]
[352783681,1739310648864,-500.0,0.00016575,2]
[352783684,1739310648874,-500.0,0.00016575,2]
[352783686,1739310648888,-500.0,0.00016575,2]
[352783687,1739310648898,-500.0,0.00016575,2]
[352783689,1739310648909,-1090.52,0.00016575,2]
[352783691,1739310648919,-500.0,0.00016575,2]
[352783693,1739310648930,-500.0,0.00016575,2]
[352783695,1739310648940,-500.0,0.00016575,2]
[352783697,1739310648951,-633.81,0.00016575,2]
[352783699,1739310648961,-500.0,0.00016575,2]
[352783701,1739310648972,-500.0,0.00016575,2]
[352783703,1739310648983,-323.069123,0.00016575,2]
[352783705,1739310648993,-503.3407849,0.00016575,2]
[352783707,1739310649003,-612.0,0.00016575,2]
[352783709,1739310649015,-501.73541415,0.00016575,2]
[352783710,1739310649025,-500.0,0.00016575,2]
[352783711,1739310649035,-500.0,0.00016575,2]
[352783712,1739310649046,-500.0,0.00016575,2]
[352783713,1739310649056,-500.0,0.00016575,2]
[352783714,1739310649066,-500.0,0.00016575,2]
[352783715,1739310649076,-500.0,0.00016575,2]
[352783716,1739310649087,-500.0,0.00016575,2]
[352783717,1739310649097,-500.0,0.00016575,2]
[352783718,1739310649107,-500.0,0.00016575,2]
[352783720,1739310649118,-500.0,0.00016575,2]
[352783722,1739310649129,-500.0,0.00016575,2]
[352783724,1739310649139,-500.0,0.00016575,2]
[352783726,1739310649148,-500.0,0.00016575,2]
[352783728,1739310649158,-500.0,0.00016575,2]
[352783729,1739310649168,-500.0,0.00016575,2]
[352783731,1739310649178,-500.0,0.00016575,2]
[352783732,1739310649189,-500.0,0.00016575,2]
[352783733,1739310649200,-500.0,0.00016575,2]
[352783734,1739310649210,-569.15986432,0.00016575,2]
[352783735,1739310649220,-500.0,0.00016575,2]
[352783736,1739310649230,-500.0,0.00016575,2]
[352783737,1739310649240,-500.0,0.00016575,2]
[352783738,1739310649251,-500.0,0.00016575,2]
[352783739,1739310649265,-500.0,0.00016575,2]
[352783740,1739310649277,-500.0,0.00016575,2]
[352783741,1739310649288,-233.48291076,0.00016575,2]
[352783742,1739310649298,-500.0,0.00016575,2]
[352783743,1739310649309,-500.0,0.00016575,2]
[352783744,1739310649320,-500.0,0.00016575,2]
[352783745,1739310649330,-500.0,0.00016575,2]
[352783747,1739310649340,-500.0,0.00016575,2]
[352783748,1739310649350,-500.0,0.00016575,2]
[352783750,1739310649360,-500.0,0.00016575,2]
[352783752,1739310649370,-503.11288139,0.00016575,2]
[352783754,1739310649380,-500.0,0.00016575,2]
[352783756,1739310649390,-500.0,0.00016575,2]
[352783758,1739310649401,-500.0,0.00016575,2]
[352783760,1739310649412,-503.35106926,0.00016575,2]
[352783762,1739310649422,-500.0,0.00016575,2]
[352783764,1739310649432,-500.0,0.00016575,2]
[352783766,1739310649442,-500.0,0.00016575,2]
[352783768,1739310649453,-500.0,0.00016575,2]
[352783770,1739310649464,-531.95220017,0.00016575,2]
[352783772,1739310649475,-500.0,0.00016575,2]
[352783774,1739310649485,-500.0,0.00016575,2]
[352783776,1739310649494,-503.40381434,0.00016575,2]
[352783777,1739310649504,-500.0,0.00016575,2]
[352783778,1739310649515,-1000.0,0.00016575,2]
[352783779,1739310649525,-500.0,0.00016575,2]
[352783781,1739310649536,-500.0,0.00016575,2]
[352783783,1739310649547,-500.0,0.00016575,2]
[352783785,1739310649557,-500.0,0.00016575,2]
[352783787,1739310649566,-500.0,0.00016575,2]
[352783788,1739310649576,-500.0,0.00016575,2]
[352783790,1739310649586,-500.0,0.00016575,2]
[352783792,1739310649595,-524.91,0.00016575,2]
[352783794,1739310649605,-500.0,0.00016575,2]
[352783796,1739310649614,-500.0,0.00016575,2]
[352783798,1739310649623,-500.0,0.00016575,2]
[352783800,1739310649632,-500.0,0.00016575,2]
[352783802,1739310649642,-500.0,0.00016575,2]
[352783804,1739310649651,-500.0,0.00016575,2]
[352783806,1739310649660,-500.0,0.00016575,2]
[352783808,1739310649670,-500.0,0.00016575,2]
[352783810,1739310649679,-500.0,0.00016575,2]
[352783812,1739310649689,-500.0,0.00016575,2]
[352783814,1739310649699,-500.0,0.00016575,2]
[352783816,1739310649709,-502.29396263,0.00016575,2]
[352783818,1739310649719,-500.0,0.00016575,2]
[352783820,1739310649728,-500.0,0.00016575,2]
[352783822,1739310649737,-500.0,0.00016575,2]
[352783824,1739310649747,-500.0,0.00016575,2]
[352783826,1739310649757,-500.0,0.00016575,2]
[352783828,1739310649766,-500.0,0.00016575,2]
[352783829,1739310649775,-500.0,0.00016575,2]
[352783831,1739310649785,-500.0,0.00016575,2]
[352783833,1739310649796,-500.0,0.00016575,2]
[352783835,1739310649809,-500.0,0.00016575,2]
[352783837,1739310649819,-500.0,0.00016575,2]
[352783839,1739310649830,-500.0,0.00016575,2]
[352783841,1739310649841,-500.0,0.00016575,2]
[352783843,1739310649851,-500.0,0.00016575,2]
[352783845,1739310649861,-101.93140031,0.00016575,2]
[352783866,1739310650067,-398.06859969,0.00016575,2]
[352783868,1739310650077,-80.34493437,0.00016575,2]
[352783907,1739310650459,-606.22916058,8.973e-05,2]
[352783909,1739310650469,-359.77083976,0.00016438,2]
[352783911,1739310650481,-140.22916024,0.00016438,2]
[352783913,1739310650490,-500.0,0.00016438,2]
[352783915,1739310650499,-505.57,0.00016438,2]
[352783917,1739310650508,-37.70083576,0.00016574,3]
[352783919,1739310650519,-324.060861,0.00016574,3]
[352783921,1739310650530,-302.5407008,0.00016574,3]
[352783925,1739310650552,-1026.07515948,0.00016574,3]
[352783935,1739310650647,2124.4857,8.836e-05,2]
[352783939,1739310650679,-1440.975,0.00016574,3]
[352783942,1739310650690,-1311.1,0.00016574,3]
[352783944,1739310650708,-122150.82215825,0.00016574,3]
[352783973,1739310650998,-483.9004615,0.00016438,2]
[352783975,1739310651011,-16.0995385,0.00016438,2]
[352783977,1739310651020,-500.0,0.00016438,2]
[352783979,1739310651030,-455.9104615,0.00016574,3]
[352783981,1739310651041,-6006.66,0.00016574,3]
[352783983,1739310651052,-48329.75962749,0.00016574,3]
[352783986,1739310651064,-367.03000001,0.00016574,3]
[352784009,1739310651289,-47458.92254913,0.00016574,3]
[352784011,1739310651303,-4484.43902684,0.00016574,3]
[352784014,1739310651314,-4732.93381178,0.00016574,3]
[352784016,1739310651325,-657.925,0.00016574,3]
[352784018,1739310651336,-94017.47699,0.00016574,3]
[352784020,1739310651349,-355.16517183,0.00016574,3]
[352784022,1739310651360,-3626.50794581,0.00016574,3]
[352784025,1739310651377,-6523.92831411,0.00016574,3]
[352784034,1739310651459,-1285.80999785,0.00016574,3]
[352784036,1739310651471,-554.19588476,0.00016574,3]
[352784038,1739310651481,-271.13103366,0.00016574,3]
[352784040,1739310651492,-668.7389581,0.00016574,3]
[352784043,1739310651508,-4541.98635143,0.00016574,3]
[352784045,1739310651520,-348.95445286,0.00016574,3]
[352784545,1739310731903,298.3528,8.836e-05,2]
[352784546,1739310793907,5040.5223,8.699e-05,2]
[352784547,1739310908702,413.22,8.836e-05,2]
[352784548,1739310923512,485.3065,8.256e-05,2]
[352784550,1739311104445,389.2425,8.836e-05,2]
[352784551,1739311105202,542.1513,8.836e-05,2]
[352784552,1739311258262,379.738,8.836e-05,2]
[352784553,1739311286280,2145.3863,8.836e-05,2]
[352784554,1739311406951,2447.4179,8.836e-05,2]
[352784913,1739311785222,-2500.0,8.851e-05,2]
[352784914,1739311785248,-300.0,8.972e-05,2]
[352784915,1739311785271,-150.0,8.972e-05,2]
[352784916,1739311785296,-24593.8777,8.973e-05,2]
[352784917,1739311785320,-3456.1223,8.973e-05,2]
[352784918,1739311793187,-700.0,8.973e-05,2]
[352784932,1739311832056,-3.349,8.973e-05,2]
[352784933,1739311832065,-150.0,9.869e-05,2]
[352784934,1739311832076,-160.79,0.00010137,2]
[352784935,1739311832085,-1631.42050178,0.00012167,2]
[352784936,1739311832102,-1559.54674629,0.00012167,2]
[352784937,1739311832112,-823.04,0.00013149,2]
[352784938,1739311832121,-220.29,0.00013699,2]
[352784939,1739311832131,-434.6,0.000137,2]
[352784940,1739311832141,-800.0,0.00014068,2]
[352784941,1739311832150,-900.0,0.00014068,2]
[352784942,1739311832159,-23900.0,0.00014921,2]
[352784943,1739311832171,-2746.72,0.00014964,2]
[352784944,1739311832183,-326.12,0.00014964,2]
[352784945,1739311832192,-500.0,0.00015164,2]
[352784946,1739311832203,-2000.0,0.00015208,2]
[352784947,1739311832213,-181.09094,0.0001521,3]
[352784948,1739311832223,-280.25,0.00015322,2]
[352784949,1739311832232,-1113.35,0.00015327,2]
[352784950,1739311832242,-823.04,0.00015413,2]
[352784951,1739311832253,-174.94,0.00015415,2]
[352784952,1739311832263,-800.0,0.00015438,2]
[352784953,1739311832273,-900.0,0.00015438,2]
[352784954,1739311832283,-1500.0,0.00015439,2]
[352784955,1739311832292,-161.87,0.0001549,2]
[352784956,1739311832301,-1000.0,0.00015617,2]
[352784957,1739311832311,-200.0,0.00015649,2]
[352784958,1739311832321,-240.01,0.00015653,2]
[352784959,1739311832330,-1828.0,0.00015808,2]
[352784960,1739311832340,-371.659,0.00015808,2]
[352784961,1739311832350,-2954.0,0.00015808,2]
[352784962,1739311832360,-1264.0,0.00015808,2]
[352784963,1739311832369,-908.0,0.00015808,2]
[352784964,1739311832380,-1007.0,0.00015822,2]
[352784965,1739311832389,-1109.0,0.00015822,2]
[352784966,1739311832399,-3914.0,0.00015822,2]
[352784967,1739311832408,-154.414,0.00015822,2]
[352784968,1739311832418,-635.49949673,0.00015855,2]
[352784969,1739311832429,-9999.99,0.00016116,2]
[352784970,1739311832439,-431.83725236,0.00016193,2]
[352784971,1739311832448,-249.8001418,0.00016243,2]
[352784972,1739311832458,-877.54,0.00016311,2]
[352784973,1739311832467,-6697.71439976,0.00016338,2]
[352784974,1739311832486,-1328.02917872,0.00016338,2]
[352784975,1739311832496,-888.30748543,0.00016338,2]
[352784976,1739311832505,-500.0,0.00016438,2]
[352784977,1739311832515,-500.0,0.00016438,2]
[352784978,1739311832523,-573.14,0.00016438,2]
[352784979,1739311832533,-500.0,0.00016438,2]
[352784980,1739311832543,-500.0,0.00016438,2]
[352784982,1739311832552,-500.0,0.00016438,2]
[352784984,1739311832562,-500.0,0.00016438,2]
[352784986,1739311832571,-500.0,0.00016438,2]
[352784988,1739311832580,-500.0,0.00016438,2]
[352784989,1739311832589,-500.0,0.00016438,2]
[352784990,1739311832598,-500.0,0.00016438,2]
[352784991,1739311832608,-389.44453693,0.00016438,2]
[352784992,1739311832618,-500.0,0.00016438,2]
[352784993,1739311832627,-500.0,0.00016438,2]
[352784994,1739311832637,-500.0,0.00016438,2]
[352784995,1739311832647,-500.0,0.00016438,2]
[352784996,1739311832656,-500.0,0.00016438,2]
[352784997,1739311832666,-500.0,0.00016438,2]
[352784998,1739311832675,-500.0,0.00016438,2]
[352784999,1739311832686,-500.0,0.00016438,2]
[352785000,1739311832695,-500.0,0.00016438,2]
[352785001,1739311832704,-500.0,0.00016438,2]
[352785002,1739311832714,-500.0,0.00016438,2]
[352785004,1739311832723,-508.33627601,0.00016438,2]
[352785008,1739311832733,-500.0,0.00016438,2]
[352785011,1739311832741,-501.68527125,0.00016438,2]
[352785014,1739311832751,-500.0,0.00016438,2]
[352785017,1739311832762,-500.0,0.00016438,2]
[352785019,1739311832771,-500.0,0.00016438,2]
[352785021,1739311832783,-224.3,0.00016438,2]
[352785023,1739311832792,-500.0,0.00016438,2]
[352785025,1739311832801,-500.0,0.00016438,2]
[352785027,1739311832811,-500.0,0.00016438,2]
[352785029,1739311832826,-500.0,0.00016438,2]
[352785031,1739311832834,-500.0,0.00016438,2]
[352785033,1739311832843,-500.0,0.00016438,2]
[352785035,1739311832853,-404.48332475,0.00016438,2]
[352785037,1739311832862,-500.0,0.00016438,2]
[352785039,1739311832871,-500.0,0.00016438,2]
[352785041,1739311832880,-500.0,0.00016438,2]
[352785043,1739311832890,-500.0,0.00016438,2]
[352785045,1739311832899,-500.0,0.00016438,2]
[352785047,1739311832908,-500.0,0.00016438,2]
[352785049,1739311832917,-500.0,0.00016438,2]
[352785051,1739311832927,-500.0,0.00016438,2]
[352785052,1739311832936,-500.0,0.00016438,2]
[352785054,1739311832946,-500.0,0.00016438,2]
[352785056,1739311832955,-500.0,0.00016438,2]
[352785058,1739311832964,-492.07345284,0.00016438,2]
[352785060,1739311832974,-500.0,0.00016438,2]
[352785062,1739311832983,-500.0,0.00016438,2]
[352785064,1739311832992,-500.0,0.00016438,2]
[352785066,1739311833003,-500.0,0.00016438,2]
[352785068,1739311833012,-500.0,0.00016438,2]
[352785070,1739311833021,-500.0,0.00016438,2]
[352785072,1739311833031,-500.0,0.00016438,2]
[352785074,1739311833040,-500.0,0.00016438,2]
[352785075,1739311833050,-500.0,0.00016438,2]
[352785077,1739311833059,-500.0,0.00016438,2]
[352785079,1739311833069,-502.29042593,0.00016438,2]
[352785082,1739311833079,-500.0,0.00016438,2]
[352785084,1739311833088,-500.0,0.00016438,2]
[352785086,1739311833098,-500.0,0.00016438,2]